[Event "-chT Youth Countries 2019"]
[Site "Wuerzburg"]
[Date "2019.10.05"]
[Round "6.4"]
[White "Franke, Luca"]
[Black "Muller, Magnus"]
[Result "0-1"]
[ECO "E06"]
[WhiteElo "1872"]
[BlackElo "1478"]
[Annotator "NA"]
[PlyCount "50"]
[EventDate "2019.10.02"]
[EventType "team-tourn"]
[EventRounds "7"]
[EventCountry "GER"]
[SourceTitle "playchess.com"]
[Source "ChessBase"]
[SourceQuality "1"]
[WhiteTeam "Team Süd"]
[BlackTeam "Thüringen"]
[TimeControl "40/5400+30:1800+30"]

1. d4 {[%emt 0:00:00]} Nf6 {[%emt 0:00:00]} 2. c4 {[%emt 0:00:00]} e6 {[%emt 0:00:00]} 3. g3 {[%emt 0:00:00]} d5 {[%emt 0:00:00]} 4. Nf3 {[%emt 0:00:00]} Be7 {[%emt 0:00:00]} 5. Bg2 {[%emt 0:00:05]} O-O {[%emt 0:00:00]} 6. O-O {[%emt 0:00:20]} dxc4 {[%emt 0:00:02]} 7. Qc2 {[%emt 0:00:14]} c6 {[%emt 0:00:54]} 8. Qxc4 {[%emt 0:00:19]} b5 {[%emt 0:00:05]} 9. Qc2 {[%emt 0:00:24]} Bb7 {[%emt 0:00:04]} 10. Nbd2 {[%emt 0:02:21]} Nbd7 {[%emt 0:00:38]} 11. Nb3 {[%emt 0:00:11]} Qb6 {[%emt 0:02:04]} 12. Bd2 {[%emt 0:02:06]} Rac8 {[%emt 0:03:23]} 13. Na5 {[%emt 0:00:34]} c5 {[%emt 0:06:50]} 14. Nxb7 {[%emt 0:01:47]} Qxb7 {[%emt 0:00:06]} 15. dxc5 {[%emt 0:19:43]} Nxc5 {[%emt 0:01:57]} 16. b4 {[%emt 0:03:06]} Nce4 {[%emt 0:01:26]} 17. Qb2 {[%emt 0:14:06]} Nd5 {[%emt 0:04:30]} 18. Rac1 {[%emt 0:00:56]} Nd6 {[%emt 0:03:40]} 19. Rfd1 {[%emt 0:09:48]} Qb6 {[%emt 0:14:21]} 20. a3 {[%emt 0:08:22]} Bf6 {[%emt 0:00:48]} 21. Qb3 {[%emt 0:02:25]} Ne4 {[%emt 0:00:38]} 22. e3 {[%emt 0:12:16]} Nxd2 {[%emt 0:01:41]} 23. Nxd2 {[%emt 0:01:06]} Nc3 {[%emt 0:00:06]} 24. Re1 {[%emt 0:02:00]} Ne2+ {[%emt 0:01:20]} 25. Rxe2 {[%emt 0:00:25]} Rxc1+ {[%emt 0:00:04] normal} 0-1

[Event "-chT Youth Countries 2019"]
[Site "Wuerzburg"]
[Date "2019.10.05"]
[Round "6.4"]
[White "Hecht, Jonas Christian"]
[Black "Ravina, David"]
[Result "1/2-1/2"]
[ECO "A17"]
[WhiteElo "1775"]
[BlackElo "2087"]
[Annotator "NA"]
[PlyCount "42"]
[EventDate "2019.10.02"]
[EventType "team-tourn"]
[EventRounds "7"]
[EventCountry "GER"]
[SourceTitle "playchess.com"]
[Source "ChessBase"]
[SourceQuality "1"]
[WhiteTeam "Baden 2"]
[BlackTeam "Hamburg/Schleswig-Holstein"]
[TimeControl "40/5400+30:1800+30"]

1. c4 {[%emt 0:00:00]} Nf6 {[%emt 0:00:10]} 2. Nc3 {[%emt 0:00:00]} e6 {[%emt 0:00:05]} 3. Nf3 {[%emt 0:02:55]} d5 {[%emt 0:04:03]} 4. e3 {[%emt 0:00:06]} c6 {[%emt 0:00:57]} 5. b3 {[%emt 0:00:24]} Bd6 {[%emt 0:00:20]} 6. Be2 {[%emt 0:00:30]} O-O {[%emt 0:01:17]} 7. O-O {[%emt 0:03:08]} Nbd7 {[%emt 0:01:53]} 8. Bb2 {[%emt 0:00:33]} a6 {[%emt 0:04:41]} 9. d4 {[%emt 0:01:36]} Ne4 {[%emt 0:02:33]} 10. cxd5 {[%emt 0:05:01]} exd5 {[%emt 0:01:25]} 11. Nxe4 {[%emt 0:01:43]} dxe4 {[%emt 0:00:16]} 12. Ne5 {[%emt 0:00:08]} Re8 {[%emt 0:11:22]} 13. Bc4 {[%emt 0:04:44]} Nxe5 {[%emt 0:07:35]} 14. dxe5 {[%emt 0:01:06]} Bc5 {[%emt 0:03:25]} 15. Qh5 {[%emt 0:01:43]} Qe7 {[%emt 0:03:11]} 16. e6 {[%emt 0:01:33]} f6 {[%emt 0:02:56]} 17. Rad1 {[%emt 0:08:22]} b5 {[%emt 0:01:42]} 18. Rd7 {[%emt 0:01:22]} Bxd7 {[%emt 0:00:07]} 19. exd7+ {[%emt 0:00:07]} bxc4 {[%emt 0:00:04]} 20. dxe8=Q+ {[%emt 0:00:13]} Rxe8 {[%emt 0:00:14]} 21. bxc4 {[%emt 0:00:13]} Rd8 {[%emt 0:05:36] normal} 1/2-1/2

[Event "-chT Youth Countries 2019"]
[Site "Wuerzburg"]
[Date "2019.10.05"]
[Round "6.5"]
[White "Nguyen, Ha Thanh"]
[Black "Lederer, Leia"]
[Result "1/2-1/2"]
[ECO "C50"]
[WhiteElo "1998"]
[BlackElo "1750"]
[Annotator "NA"]
[PlyCount "77"]
[EventDate "2019.10.02"]
[EventType "team-tourn"]
[EventRounds "7"]
[EventCountry "GER"]
[SourceTitle "playchess.com"]
[Source "ChessBase"]
[SourceQuality "1"]
[WhiteTeam "Thüringen"]
[BlackTeam "Team Süd"]
[TimeControl "40/5400+30:1800+30"]

1. e4 {[%emt 0:00:00]} e5 {[%emt 0:00:00]} 2. Nf3 {[%emt 0:00:00]} Nc6 {[%emt 0:00:00]} 3. Bc4 {[%emt 0:00:00]} Nf6 {[%emt 0:00:00]} 4. d3 {[%emt 0:00:00]} Bc5 {[%emt 0:00:00]} 5. c3 {[%emt 0:00:00]} d6 {[%emt 0:00:12]} 6. Bb3 {[%emt 0:00:36]} a6 {[%emt 0:01:15]} 7. Nbd2 {[%emt 0:01:11]} Ba7 {[%emt 0:02:12]} 8. h3 {[%emt 0:02:16]} h6 {[%emt 0:00:54] C54: Giuoco Piano: 4 c3 Nf6, main lines with 5 d4 and 5 d3} 9. Nf1 {[%emt 0:06:50]} Qe7 {[%emt 0:14:22]} (9... Be6 10. Ng3 Qd7 11. Qe2 Bxb3 12. axb3 Ne7 13. O-O Ng6 14. Nf5 O-O 15. Nh2 Qe6 16. b4 Ne7 17. Ng3 Ng6 18. Nf5 Ne7 19. Ng3 Ng6 20. Nf5 Ne7 {½-½ (20) Chigaev,M (2604)-Kovalev,V (2687) Wijk aan Zee 2019}) 10. Ne3 {[%emt 0:05:30]} Bd7 $146 {[%emt 0:24:24]} ({Predecessor:} 10... g6 11. Qe2 Bd7 12. g4 Na5 13. Bc2 O-O-O 14. b4 Nc6 15. a4 Nb8 16. Bd2 {1-0 (38) Von Herman,B (2062)-Sewald,K (2016) Bayerisch Eisenstein 2019}) 11. a4 {[%emt 0:04:54]} g5 {[%emt 0:07:37]} 12. Bc2 {[%emt 0:08:33]} Bxe3 {[%emt 0:11:10]} 13. Bxe3 {[%emt 0:01:09]} d5 {[%emt 0:03:24]} 14. Qe2 {[%emt 0:04:01]} g4 {[%emt 0:03:32]} 15. hxg4 {[%emt 0:03:36]} Bxg4 {[%emt 0:00:17]} 16. Rxh6 {[%emt 0:01:32]} Rxh6 {[%emt 0:03:42]} 17. Bxh6 {[%emt 0:00:13]} O-O-O {[%emt 0:00:17]} 18. O-O-O {[%emt 0:00:32]} d4 {[%emt 0:02:59] unterminated} 19. c4 {[%emt 0:10:58]} b5 {[%emt 0:04:22] unterminated} 20. axb5 {[%emt 0:11:18]} axb5 {[%emt 0:00:09] unterminated} 21. cxb5 {[%emt 0:06:43] unterminated} Nb4 {[%emt 0:02:38]} 22. Bb3 {[%emt 0:03:50] unterminated} Qc5+ {[%emt 0:02:38]} 23. Bc4 {[%emt 0:01:42] unterminated} Kb7 {[%emt 0:01:58]} 24. Bg5 {[%emt 0:03:34] unterminated} Rd6 {[%emt 0:05:30] unterminated} 25. Kd2 {[%emt 0:08:11]} c6 {[%emt 0:01:14] unterminated} 26. Rc1 {[%emt 0:03:05]} Qb6 {[%emt 0:00:24] unterminated} 27. bxc6+ {[%emt 0:03:40]} ({But not} 27. Bxf7 $6 Qxb5 28. Rh1 Rd7 $18) 27... Rxc6 $18 {[%emt 0:01:40]} 28. Qd1 {[%emt 0:03:40]} Qa5 {[%emt 0:02:41]} 29. Ke2 {[%emt 0:01:05]} Qb6 {[%emt 0:01:47]} 30. Ra1 {[%emt 0:02:46]} Rxc4 {[%emt 0:02:13]} 31. dxc4 {[%emt 0:01:10]} Nxe4 {[%emt 0:00:30]} 32. Bh4 {[%emt 0:00:30]} d3+ {[%emt 0:00:53]} 33. Kf1 {[%emt 0:00:09]} Qc5 {[%emt 0:00:43]} 34. b3 {[%emt 0:01:03]} Nc3 {[%emt 0:00:24]} 35. Qd2 {[%emt 0:00:53]} Ne4 {[%emt 0:00:48]} 36. Qd1 {[%emt 0:00:11]} Nc3 {[%emt 0:00:10]} 37. Qd2 {[%emt 0:00:31]} Ne4 {[%emt 0:00:18]} 38. Qd1 {[%emt 0:00:43]} Nc3 {[%emt 0:00:04]} 39. Qd2 {normal} 1/2-1/2

[Event "-chT Youth Countries 2019"]
[Site "Wuerzburg"]
[Date "2019.10.05"]
[Round "6.5"]
[White "Reitz, Theresa"]
[Black "Muedder, Melanie"]
[Result "0-1"]
[ECO "B24"]
[WhiteElo "1935"]
[BlackElo "1964"]
[Annotator "NA"]
[PlyCount "41"]
[EventDate "2019.10.02"]
[EventType "team-tourn"]
[EventRounds "7"]
[EventCountry "GER"]
[SourceTitle "playchess.com"]
[Source "ChessBase"]
[SourceQuality "1"]
[WhiteTeam "Rheinland-Pfalz"]
[BlackTeam "Nordrhein-Westfalen"]
[TimeControl "40/5400+30:1800+30"]

1. e4 {[%emt 0:00:00]} c5 {[%emt 0:00:00]} 2. Nc3 {[%emt 0:00:00]} Nc6 {[%emt 0:00:00]} 3. Bb5 {[%emt 0:00:00]} Nd4 {[%emt 0:00:00]} 4. Bc4 {[%emt 0:00:00]} e6 {[%emt 0:00:23]} 5. Nge2 {[%emt 0:00:07]} Nf6 {[%emt 0:00:24]} 6. O-O {[%emt 0:00:17]} a6 {[%emt 0:00:09]} 7. a4 {[%emt 0:00:16]} d5 {[%emt 0:00:30]} 8. exd5 {[%emt 0:00:20]} exd5 {[%emt 0:00:07]} 9. Ba2 {[%emt 0:00:11] unterminated} Bg4 {[%emt 0:04:20]} 10. d3 {[%emt 0:01:06] unterminated} Qd7 {[%emt 0:06:39]} 11. f3 {[%emt 0:02:15]} Be6 {[%emt 0:00:22] unterminated} 12. Bg5 {[%emt 0:08:26] unterminated} Nf5 {[%emt 0:12:15] unterminated} 13. Qe1 {[%emt 0:12:48] unterminated} O-O-O {[%emt 0:16:04] unterminated} 14. Nf4 {[%emt 0:06:22] unterminated} Re8 {[%emt 0:08:15] unterminated} 15. Qf2 {[%emt 0:05:38] unterminated} d4 {[%emt 0:08:42] unterminated} 16. Bxf6 {[%emt 0:07:34] unterminated} gxf6 $15 {[%emt 0:10:45] unterminated} ({Black should play} 16... Bxa2 $17 17. Bxd4 (17. Rxa2 gxf6 18. Ne4 Qc6 $17) 17... cxd4 18. Nxa2 Kb8) 17. Ncd5 {[%emt 0:02:32]} Qd8 $1 {[%emt 0:00:30] unterminated} 18. c3 {[%emt 0:04:22]} Bh6 {[%emt 0:02:09]} 19. Kh1 {[%emt 0:07:02]} Bxd5 {[%emt 0:11:15]} 20. Nxd5 {[%emt 0:00:13]} Re5 {[%emt 0:00:56] normal} 21. cxd4 {[%emt 0:08:08] normal} 0-1

[Event "-chT Youth Countries 2019"]
[Site "Wuerzburg"]
[Date "2019.10.05"]
[Round "6.5"]
[White "Kobald, Jacqueline"]
[Black "Moenster, Madita"]
[Result "0-1"]
[ECO "B60"]
[WhiteElo "1884"]
[BlackElo "1916"]
[Annotator "NA RC"]
[PlyCount "112"]
[EventDate "2019.10.02"]
[EventType "team-tourn"]
[EventRounds "7"]
[EventCountry "GER"]
[SourceTitle "playchess.com"]
[Source "ChessBase"]
[SourceQuality "1"]
[WhiteTeam "Württemberg"]
[BlackTeam "Niedersachsen"]
[TimeControl "40/5400+30:1800+30"]

1. e4 {[%emt 0:00:00]} c5 {[%emt 0:00:00]} 2. Nf3 {[%emt 0:00:00]} Nc6 {[%emt 0:00:00]} 3. d4 {[%emt 0:00:00]} cxd4 {[%emt 0:00:00]} 4. Nxd4 {[%emt 0:00:04]} Nf6 {[%emt 0:00:07]} 5. Nc3 {[%emt 0:00:17]} d6 {[%emt 0:00:07] unterminated} 6. Bg5 {[%emt 0:04:42]} Bd7 {[%emt 0:00:18] unterminated} 7. f4 {[%emt 0:03:49] unterminated} Qa5 {[%emt 0:03:15] unterminated} 8. Nb3 {[%emt 0:09:34] unterminated} Qb6 {[%emt 0:08:00] unterminated} 9. Qd2 {[%emt 0:08:30]} Rc8 {[%emt 0:07:30]} 10. O-O-O {[%emt 0:06:13]} Nb4 {[%emt 0:09:41]} 11. Bd3 {[%emt 0:17:15]} Ng4 {[%emt 0:11:39] unterminated} 12. Bh4 {[%emt 0:05:45] unterminated} a5 {[%emt 0:01:47]} 13. Nd5 {[%emt 0:03:42] unterminated} Nxd5 {[%emt 0:02:56]} 14. exd5 {[%emt 0:00:06]} a4 {[%emt 0:02:12] unterminated} 15. Na1 {[%emt 0:07:40] unterminated} a3 {[%emt 0:08:35]} 16. bxa3 {[%emt 0:01:56] unterminated} Qd4 {[%emt 0:04:25]} 17. Nb3 {[%emt 0:02:03] unterminated} Qxd5 {[%emt 0:00:59] unterminated} 18. Rde1 {[%emt 0:07:49] unterminated} Nf6 {[%emt 0:09:05] unterminated} 19. h3 {[%emt 0:03:58] unterminated} Qc6 {[%emt 0:07:01]} 20. g4 {[%emt 0:01:32] unterminated} Qa4 {[%emt 0:01:44]} 21. Qb4 {[%emt 0:01:43]} Nd5 {[%emt 0:01:29] unterminated} 22. Qxa4 {[%emt 0:00:24]} Bxa4 {[%emt 0:00:06]} 23. f5 {[%emt 0:01:36] unterminated} Nf4 {[%emt 0:04:51]} 24. Kd2 {[%emt 0:03:24]} Ng2 {[%emt 0:01:00]} 25. Bg3 {[%emt 0:01:24]} Nxe1 {[%emt 0:00:15]} 26. Rxe1 {[%emt 0:00:05]} Kd7 {[%emt 0:00:41]} 27. Na5 {[%emt 0:00:59] unterminated} Rc7 {[%emt 0:02:20]} (27... g6 $19 28. Bf4 b5) 28. Nc4 {[%emt 0:02:22] unterminated} Bc6 {[%emt 0:01:36]} 29. Nb6+ {[%emt 0:01:48]} Kd8 {[%emt 0:00:37] unterminated} 30. c4 {[%emt 0:01:56] unterminated} (30. Bc4 $17) 30... Bg2 {[%emt 0:06:06]} 31. Nd5 {[%emt 0:02:01] [#]} Rc8 {[%emt 0:02:32]} ({But not} 31... Bxh3 32. Nxc7 Kxc7 33. Bh4 $17) (31... Bxd5 $1 $19 32. cxd5 g6) 32. h4 {[%emt 0:00:56] [#]} (32. Bf2 $17) 32... g6 $2 {[%emt 0:02:40]} (32... Ra8 $1 $19 {and Black stays clearly on top.} 33. Rb1 Rxa3 34. Rxb7 Rxa2+ 35. Kc3 Ra3+ 36. Kd2 e6 37. Rb8+ Kd7) 33. Rb1 {[%emt 0:01:28]} e6 {[%emt 0:01:41]} 34. fxe6 {[%emt 0:00:24]} fxe6 {[%emt 0:00:05]} 35. Nf4 {[%emt 0:00:10]} Bc6 {[%emt 0:00:33]} 36. Nxe6+ {[%emt 0:00:13]} Kd7 {[%emt 0:00:20]} 37. Nd4 {[%emt 0:00:58]} Bg2 {[%emt 0:01:12]} 38. Nb5 {[%emt 0:01:16]} Be7 {[%emt 0:00:33]} 39. g5 {[%emt 0:00:37]} Rhf8 {[%emt 0:00:30] unterminated} 40. Be2 {[%emt 0:00:35] unterminated} Be4 {[%emt 0:00:29] unterminated} 41. Re1 {[%emt 0:09:08] unterminated} Bf5 {[%emt 0:04:22] unterminated} 42. Rd1 {[%emt 0:05:01] unterminated} Be6 {[%emt 0:04:04] unterminated} 43. Rc1 {[%emt 0:04:40] unterminated} d5 {[%emt 0:12:28] unterminated} 44. Nd4 {[%emt 0:04:06] unterminated} Bf5 {[%emt 0:03:46]} 45. Nxf5 {[%emt 0:00:53]} gxf5 {[%emt 0:00:13] unterminated} 46. Bf4 {[%emt 0:01:25]} (46. Rb1 $1 $11 Bd6 47. Rxb7+ Rc7 48. Bxd6 Kxd6 49. Rxc7 Kxc7 50. cxd5) 46... dxc4 $15 {[%emt 0:01:52]} (46... Bd6 $17 47. Be3 dxc4 48. Rxc4 Bxa3 49. Rd4+ Ke7) 47. Rxc4 {[%emt 0:01:22]} Rxc4 {[%emt 0:01:55]} 48. Bxc4 {[%emt 0:00:06]} Bxa3 {[%emt 0:00:16]} 49. h5 {[%emt 0:02:03]} Bc1+ {[%emt 0:01:39]} 50. Kxc1 {[%emt 0:00:46]} Rc8 {[%emt 0:00:04]} 51. Kd2 {[%emt 0:01:57]} Rxc4 {[%emt 0:00:05]} 52. Ke3 {[%emt 0:01:31]} Ra4 {[%emt 0:01:54]} 53. g6 {[%emt 0:02:00]} hxg6 {[%emt 0:00:06]} 54. h6 {[%emt 0:00:26]} Ra3+ {[%emt 0:01:26]} 55. Kd4 {[%emt 0:01:01]} Ke6 56. Bg5 {[%emt 0:01:47]} Rxa2 {[%emt 0:02:59] normal} 0-1

[Event "-chT Youth Countries 2019"]
[Site "Wuerzburg"]
[Date "2019.10.05"]
[Round "6.5"]
[White "Hänselmann, Hendrik"]
[Black "Arnhold, Steffi"]
[Result "1/2-1/2"]
[ECO "B32"]
[WhiteElo "1732"]
[BlackElo "2042"]
[Annotator "NA"]
[PlyCount "56"]
[EventDate "2019.10.02"]
[EventType "team-tourn"]
[EventRounds "7"]
[EventCountry "GER"]
[SourceTitle "playchess.com"]
[Source "ChessBase"]
[SourceQuality "1"]
[WhiteTeam "Baden 1"]
[BlackTeam "Sachsen"]
[TimeControl "40/5400+30:1800+30"]

1. e4 {[%emt 0:00:00]} c5 {[%emt 0:00:00]} 2. Nf3 {[%emt 0:00:00]} Nc6 {[%emt 0:00:00]} 3. d4 {[%emt 0:00:00]} cxd4 {[%emt 0:00:00]} 4. Nxd4 {[%emt 0:00:00]} g6 {[%emt 0:00:09]} 5. Be2 {[%emt 0:00:03]} Bg7 {[%emt 0:00:35]} 6. Nb3 {[%emt 0:00:07]} Nf6 {[%emt 0:01:02]} 7. Nc3 {[%emt 0:00:10]} d6 {[%emt 0:03:34]} 8. O-O {[%emt 0:03:04]} O-O {[%emt 0:00:11]} 9. Bg5 {[%emt 0:00:07] unterminated} Be6 {[%emt 0:05:50]} 10. Re1 {[%emt 0:00:49] unterminated} Rc8 {[%emt 0:16:43]} 11. Bf1 {[%emt 0:01:43] unterminated unterminated. B70: Sicilian Dragon: 6 g3 and 6 Be2 (without a later Be3)} a6 {[%emt 0:08:38] unterminated} (11... h6 12. Bf4 d5 13. exd5 Nxd5 14. Nxd5 Bxd5 15. c3 e5 16. Be3 b6 17. Qc1 Qh4 18. f3 Rfd8 {0-1 (52) Andriasian,Z (2585)-Nakamura,H (2781) chess.com INT 2018}) 12. Nd5 {[%emt 0:04:05] unterminated} Ne5 {[%emt 0:09:34]} 13. Bxf6 $146 {[%emt 0:02:37] unterminated} ({Predecessor:} 13. c3 Bg4 14. Qd2 Ned7 15. Nd4 Nxd5 16. exd5 Nf6 17. c4 Re8 18. h3 {1-0 (71) Quparadze,G (2500)-Erden,K (2213) Edirne 2013}) 13... exf6 {[%emt 0:01:30]} 14. c3 {[%emt 0:01:16] unterminated} Nc4 {[%emt 0:11:44]} 15. Bxc4 {[%emt 0:00:35]} Rxc4 {[%emt 0:00:11] unterminated} 16. Qd3 {[%emt 0:00:27]} b5 {[%emt 0:02:08] unterminated} 17. Rad1 {[%emt 0:02:57] unterminated} f5 {[%emt 0:05:20]} 18. exf5 {[%emt 0:02:27]} Bxf5 {[%emt 0:00:08] unterminated} 19. Qg3 {[%emt 0:05:47] unterminated} Re4 {[%emt 0:08:23] unterminated} 20. Nd2 {[%emt 0:19:30] unterminated} Re6 $14 {[%emt 0:04:18]} 21. Nf3 {[%emt 0:04:25]} Rfe8 {[%emt 0:02:31]} 22. Rxe6 {[%emt 0:01:03]} Rxe6 {[%emt 0:01:34]} 23. Ng5 {[%emt 0:03:35]} Re2 {[%emt 0:03:19]} 24. Ne3 {[%emt 0:01:20]} Qe7 {[%emt 0:03:55]} 25. Qf3 {[%emt 0:03:40]} Rxb2 {[%emt 0:03:55]} 26. Nxf5 {[%emt 0:00:48]} gxf5 {[%emt 0:00:08]} 27. Qxf5 {[%emt 0:00:30]} h6 {[%emt 0:01:29] normal} 28. Ne4 {[%emt 0:03:38] normal} Re2 1/2-1/2

[Event "-chT Youth Countries 2019"]
[Site "Wuerzburg"]
[Date "2019.10.05"]
[Round "6.5"]
[White "Fuhrmann, Bahne"]
[Black "Amato, Cristiano"]
[Result "0-1"]
[ECO "B33"]
[WhiteElo "1623"]
[BlackElo "1746"]
[Annotator "NA"]
[PlyCount "56"]
[EventDate "2019.10.02"]
[EventType "team-tourn"]
[EventRounds "7"]
[EventCountry "GER"]
[SourceTitle "playchess.com"]
[Source "ChessBase"]
[SourceQuality "1"]
[WhiteTeam "Hamburg/Schleswig-Holstein"]
[BlackTeam "Baden 2"]
[TimeControl "40/5400+30:1800+30"]

1. e4 {[%emt 0:00:00]} c5 {[%emt 0:00:00]} 2. Nf3 {[%emt 0:00:00]} Nc6 {[%emt 0:00:00]} 3. d4 {[%emt 0:00:00]} cxd4 {[%emt 0:00:00]} 4. Nxd4 {[%emt 0:00:00]} Nf6 {[%emt 0:00:03]} 5. Nc3 {[%emt 0:00:00]} e6 {[%emt 0:00:19]} 6. Ndb5 {[%emt 0:00:13]} Bb4 {[%emt 0:00:27]} 7. a3 {[%emt 0:00:17]} Bxc3+ {[%emt 0:00:04]} 8. Nxc3 {[%emt 0:00:05]} d5 {[%emt 0:00:05]} 9. exd5 {[%emt 0:00:05]} exd5 {[%emt 0:00:04]} 10. Bd3 {[%emt 0:00:08]} O-O {[%emt 0:00:04]} 11. O-O {[%emt 0:00:04]} h6 {[%emt 0:00:07]} 12. f3 {[%emt 0:01:49]} d4 {[%emt 0:00:33]} 13. Ne2 {[%emt 0:00:15]} Re8 {[%emt 0:01:19]} 14. Bb5 {[%emt 0:12:44]} Qb6 {[%emt 0:00:29]} 15. Bd3 {[%emt 0:04:41]} Bf5 {[%emt 0:02:18]} 16. Kh1 {[%emt 0:01:53]} Bxd3 {[%emt 0:00:07]} 17. Qxd3 {[%emt 0:02:06]} Rad8 {[%emt 0:00:24]} 18. Ng3 {[%emt 0:21:44]} Ne5 {[%emt 0:01:13]} 19. Qb3 {[%emt 0:01:36]} Qxb3 20. cxb3 {[%emt 0:00:07]} Nc6 {[%emt 0:07:22]} 21. Bd2 {[%emt 0:01:37]} d3 {[%emt 0:00:49]} 22. Rac1 {[%emt 0:01:55]} Nd4 {[%emt 0:00:40]} 23. Bc3 {[%emt 0:04:12]} Nxb3 {[%emt 0:00:21]} 24. Bxf6 gxf6 {[%emt 0:00:24]} 25. Rcd1 {[%emt 0:05:16]} Na5 {[%emt 0:00:19]} 26. Ne4 {[%emt 0:01:34]} Kg7 {[%emt 0:00:41]} 27. Nc5 {[%emt 0:02:47]} d2 {[%emt 0:01:12]} 28. Ne4 {[%emt 0:06:22]} Nc4 {[%emt 0:00:43] normal} 0-1

[Event "-chT Youth Countries 2019"]
[Site "Wuerzburg"]
[Date "2019.10.05"]
[Round "6.6"]
[White "Yaghi, Rita"]
[Black "Grabs, Peter"]
[Result "1/2-1/2"]
[ECO "C15"]
[WhiteElo "1973"]
[BlackElo "1592"]
[Annotator "NA RC"]
[PlyCount "118"]
[EventDate "2019.10.02"]
[EventType "team-tourn"]
[EventRounds "7"]
[EventCountry "GER"]
[SourceTitle "playchess.com"]
[Source "ChessBase"]
[SourceQuality "1"]
[WhiteTeam "Hessen"]
[BlackTeam "Brandenburg/Berlin"]
[TimeControl "40/5400+30:1800+30"]

1. e4 {[%emt 0:00:00]} e6 {[%emt 0:00:00]} 2. d4 {[%emt 0:00:00]} d5 {[%emt 0:00:00]} 3. Nc3 {[%emt 0:00:00]} Bb4 {[%emt 0:00:00]} 4. a3 {[%emt 0:00:02]} Bxc3+ {[%emt 0:00:00]} 5. bxc3 {[%emt 0:00:05]} dxe4 {[%emt 0:00:00]} 6. Qg4 {[%emt 0:00:07]} Nf6 {[%emt 0:00:00]} 7. Qxg7 {[%emt 0:00:06]} Rg8 {[%emt 0:00:00]} 8. Qh6 {[%emt 0:00:09]} Rg6 {[%emt 0:00:00]} 9. Qe3 {[%emt 0:02:11]} Nc6 {[%emt 0:02:04]} 10. Ne2 {[%emt 0:01:01] C15: French: 3 Nc3 Bb4: Unusual White 4th moves} Ne7 {[%emt 0:00:57]} 11. Ng3 {[%emt 0:02:19]} Ned5 {[%emt 0:00:24]} 12. Qd2 {[%emt 0:00:14]} b6 {[%emt 0:10:03]} 13. c4 $146 {[%emt 0:01:53]} ({Predecessor:} 13. Bb5+ Bd7 14. Be2 Bc6 15. c4 Ne7 16. a4 h5 17. h4 Qd7 {1-0 (39) Savchenko,B (2602)-Bajarani,U (2516) Canakkale 2016}) 13... Ne7 {[%emt 0:00:55]} 14. Be2 {[%emt 0:00:27]} Bb7 {[%emt 0:04:06]} 15. Qc3 {[%emt 0:11:06]} Qd7 {[%emt 0:12:22]} 16. Bb2 {[%emt 0:05:27]} O-O-O {[%emt 0:09:41]} 17. a4 {[%emt 0:03:24]} Nc6 {[%emt 0:03:45]} 18. Rd1 {[%emt 0:03:06]} Na5 {[%emt 0:02:06]} 19. Qa3 {[%emt 0:09:22]} Ba6 {[%emt 0:01:47]} 20. Qb4 {[%emt 0:14:26]} Nc6 {[%emt 0:02:16]} 21. Qc3 {[%emt 0:04:10]} Na5 {[%emt 0:00:24]} 22. Qb4 {[%emt 0:08:45]} Nc6 {[%emt 0:00:19]} 23. Qa3 {[%emt 0:00:05]} Na5 {[%emt 0:00:42]} 24. Qa2 {[%emt 0:00:19]} Qc6 {[%emt 0:05:36]} 25. d5 {[%emt 0:05:59]} Bxc4 {[%emt 0:02:42]} 26. dxc6 {[%emt 0:01:47]} Rxd1+ {[%emt 0:00:33]} 27. Kxd1 {[%emt 0:00:13]} Bxa2 {[%emt 0:00:14]} 28. h4 {[%emt 0:02:01]} Ng4 {[%emt 0:18:01]} 29. Rf1 {[%emt 0:05:53]} e3 {[%emt 0:03:14]} 30. Ne4 {[%emt 0:06:02]} exf2 {[%emt 0:04:36]} 31. h5 {[%emt 0:00:43]} Ne3+ {[%emt 0:00:44]} 32. Kc1 {[%emt 0:00:27]} Rxg2 {[%emt 0:00:21]} 33. Rxf2 {[%emt 0:00:39]} Rxf2 {[%emt 0:01:10]} 34. Nxf2 {[%emt 0:00:02]} Nxc6 {[%emt 0:02:38]} 35. Ne4 {[%emt 0:00:13]} f5 {[%emt 0:13:45]} 36. Nf6 {[%emt 0:03:33]} h6 {[%emt 0:00:11]} 37. Ng8 {[%emt 0:00:11]} Ng4 {[%emt 0:00:21]} 38. Bg7 {[%emt 0:00:08]} e5 {[%emt 0:00:53]} 39. Nxh6 {[%emt 0:00:08]} Nxh6 {[%emt 0:00:10]} 40. Bxh6 {[%emt 0:00:01]} Nd4 {[%emt 0:01:27]} 41. Ba6+ {[%emt 0:30:08]} Kd7 {[%emt 0:30:28]} 42. Bg7 {[%emt 0:00:05] unterminated} Bg8 {[%emt 0:00:00]} 43. Bxe5 {[%emt 0:00:00]} Nf3 {[%emt 0:00:00]} 44. Bf4 {[%emt 0:00:00]} Bf7 {[%emt 0:00:00]} 45. h6 {[%emt 0:00:00]} Bg6 {[%emt 0:00:00] unterminated} 46. c3 {[%emt 0:00:00]} Bh7 {[%emt 0:00:00]} 47. Bb5+ {[%emt 0:00:00] unterminated} Kc8 {[%emt 0:00:00] unterminated} 48. Be2 {[%emt 0:01:53]} Nh4 {[%emt 0:00:00]} 49. Kd2 {[%emt 0:00:11]} Ng6 {[%emt 0:00:00]} 50. Bg5 {[%emt 0:01:31]} Ne5 {[%emt 0:00:00]} 51. Ke3 {[%emt 0:00:23]} Nf7 {[%emt 0:00:00]} 52. Bf4 {[%emt 0:00:25]} Kd7 {[%emt 0:00:04] unterminated} 53. Kd4 {[%emt 0:03:15]} c6 {[%emt 0:03:44] unterminated} 54. Bh5 $11 {[%emt 0:01:45]} Ke6 {[%emt 0:02:27]} 55. Bf3 {[%emt 0:04:32]} c5+ {[%emt 0:00:14]} 56. Ke3 {[%emt 0:01:46]} Ne5 {[%emt 0:00:28]} 57. Be2 {[%emt 0:02:51]} Kd5 {[%emt 0:00:55]} 58. Bb5 {[%emt 0:01:03]} Ng4+ {[%emt 0:00:58]} 59. Kd3 {[%emt 0:01:36]} Ne5+ {[%emt 0:00:23] normal Kd4+} 1/2-1/2